Cogmind - Beta 10.2 @@@ ROGUE MODE // 2020.12.28 @ 20:12:39 Player: deMangler Result: Destroyed by S-10 Pest with Light Assault Rifle Performance ------------- Evolutions (1) 500 Regions Visited (2) 400 Robots Destroyed (23) 115 Value Destroyed (477) 477 Prototype IDs (2) 40 Alien Tech Used (0) 0 Bonus (0) 0 TOTAL SCORE: 1532 Bonus ------- None Cogmind --------- Core Integrity 0/400 Matter 245/350 Energy 100/100 System Corruption 0% Temperature Cool (0) Movement Treading (160) Location -9/Materials Parts ------- > --- POWER (1) -------- (None) > --- PROPULSION (2) --- Improved Treads > --- UTILITY (3) ------ Small Matter Pod > --- WEAPON (3) ------- (None) > --- INVENTORY (4) ---- Light Ion Engine Wheel Field Recycling Unit (0) Peak State ------------ > --- POWER ------------ Ion Engine > --- PROPULSION ------- Wheel Wheel > --- UTILITY ---------- Small Matter Pod Propulsion Shielding > --- WEAPON ----------- EM Pulse Gun Light Assault Rifle Grenade Launcher > --- INVENTORY -------- Light Ion Engine Field Recycling Unit Light Assault Rifle [Rating: 8] Favorites ----------- Power Ion Engine Engine Ion Engine Propulsion Wheel Treads Light Treads Leg Aluminum Leg Wheel Wheel Utility Small Matter Pod Storage Small Matter Pod Protection Propulsion Shielding Weapon EM Pulse Gun Energy Gun EM Pulse Gun Ballistic Gun Light Assault Rifle Launcher Grenade Launcher Build | -11 -10 -9 ------- Run | Scr Mat Mat Slots Evolved 2 | . . 2 Power . | . . . Propulsion . | . . . Utility 1 | . . 1 Weapon 1 | . . 1 Parts Attached 24 | 7 8 9 Power 4 | 1 2 1 Engine 4 | 1 2 1 Core . | . . . Reactor . | . . . Propulsion 8 | 2 3 3 Treads 3 | . 1 2 Leg 2 | 2 . . Wheel 3 | . 2 1 Hover . | . . . Flight . | . . . Utility 2 | . 2 . Device . | . . . Storage 1 | . 1 . Processor . | . . . Hackware . | . . . Protection 1 | . 1 . Artifact . | . . . Weapon 10 | 4 1 5 Energy Gun 5 | 2 . 3 Energy Cannon . | . . . Ballistic Gun 4 | 2 . 2 Ballistic Cannon . | . . . Launcher 1 | . 1 . Special Weapon . | . . . Impact Weapon . | . . . Slashing Weapon . | . . . Piercing Weapon . | . . . Special Melee Weapon . | . . . Unidentified Prototypes 2 | . . 2 Parts Lost 13 | . . 13 Power 2 | . . 2 Propulsion 3 | . . 3 Utility 1 | . . 1 Weapon 7 | . . 7 Highest Loss Streak 10 | . . 10 Average Slot Usage (%) 78 | . 91 68 Engine 10 | . 13 8 Treads 1 | . . 2 Leg 8 | . 17 . Wheel 13 | . 8 16 Storage 11 | . 11 11 Protection 10 | . 10 10 Energy Gun 10 | . 15 6 Ballistic Gun 3 | . . 5 Launcher 9 | . 12 6 Naked Turns . | . . . Heaviest Build 13 | 7 12 13 Greatest Support 43 | 20 20 43 Greatest Overweight (x) 3 | . . 3 Average Overweight (x) . | . . . Largest Inventory Capacity 4 | 4 4 4 Average Capacity 4 | 4 4 4 Most Carried 4 | 4 4 4 Average Carried 3 | 2 3 3 Final Capacity 4 | 4 4 4 Final Carried 4 | 4 2 3 Class Distribution -------------------- 77% | Mutant 22% | Tank Dominant Class ---------------- Mutant | -10/Materials Mutant | -9/Materials Resources | -11 -10 -9 ----------- Run | Scr Mat Mat Matter Collected 547 | 279 209 59 Remotely . | . . . Salvage Created 591 | 42 295 254 Parts 45 | 3 18 24 Haulers Intercepted 2 | . 1 1 Recyclers Shooed . | . . . Parts Field Recycled . | . . . Retrieved Matter . | . . . Parts Self-Destructed . | . . . Prevented . | . . . Kills | -11 -10 -9 ------- Run | Scr Mat Mat Combat Hostiles Destroyed 14 | 1 4 9 Guns 6 | 1 1 4 AOE 8 | . 3 5 Classes Destroyed 7 | 1 4 2 Worker 3 | . 3 . Builder 3 | . 1 2 Hauler 2 | . 1 1 Recycler 1 | . 1 . Swarmer 3 | . . 3 Grunt 10 | 1 4 5 Brawler 1 | . . 1 Best Kill Streak 6 | 1 6 5 Combat Bots Only 4 | 1 2 4 Max Kills in Single Turn 3 | 1 3 3 Gunslinging . | . . . Exploded 2 | . 1 2 Melee . | . . . Uniques/NPCs Destroyed . | . . . Combat | -11 -10 -9 -------- Run | Scr Mat Mat Damage Taken 1441 | 33 176 1232 Core 440 | . 39 401 Absorbed by Shields . | . . . Core Remaining (%) 92 | 100 84 . Volleys Fired 35 | 3 10 22 Largest 3 | 2 2 3 Hottest 90 | 60 70 90 Shots Fired 66 | 6 20 40 Gun 46 | 6 10 30 Cannon . | . . . Launcher 20 | . 10 10 Special . | . . . Kinetic 21 | 3 . 18 Thermal 3 | . . 3 Explosive 20 | . 10 10 Electromagnetic 22 | 3 10 9 Robot Hit Streak 12 | 5 12 8 Robot Miss Streak 3 | . 1 3 Penetration Max . | . . . Secondary Targets . | . . . Shots Hit Robots 44 | 5 14 25 Core Hits 44 | 2 17 25 Critical Hits . | . . . Critical Kills . | . . . Critical Parts Destroyed . | . . . Melee Attacks . | . . . Impact . | . . . Slashing . | . . . Piercing . | . . . Sneak Attacks . | . . . Combat Hostiles . | . . . Follow-up Attacks . | . . . Damage Inflicted 1639 | 64 564 1011 Guns 365 | 64 109 192 Cannons . | . . . Explosions 1274 | . 455 819 Melee . | . . . Ramming . | . . . Kinetic 114 | 25 . 89 Thermal 100 | . . 100 Explosive 1196 | . 455 741 Electromagnetic 229 | 39 109 81 Impact . | . . . Slashing . | . . . Piercing . | . . . Highest Corruption . | . . . Average Corruption . | . . . Corruption Purged . | . . . Overload Shots . | . . . Overflow Damage 17 | . 11 6 Projectiles . | . . . Explosions 17 | . 11 6 Melee . | . . . Knockbacks . | . . . Impact . | . . . Kinetic . | . . . Secondary . | . . . Self-Inflicted Damage 143 | . 87 56 Shots 7 | . 4 3 Rammed . | . . . Targets Rammed . | . . . Kicked . | . . . Crushed . | . . . Highest Temperature 140 | 18 54 140 Average Temperature 36 | 13 23 50 Received Heat Transfer 585 | 18 51 516 Siege Activations . | . . . Robots Corrupted . | . . . Combat Hostiles . | . . . Parts Fried . | . . . Impact Corruptions . | . . . Robots Melted . | . . . Combat Hostiles . | . . . Parts Melted . | . . . Heat Transferred 150 | . . 150 Parts Sabotaged . | . . . Parts Stolen . | . . . Parts Stripped . | . . . Power Chain Reactions 1 | . . 1 Missiles Intercepted . | . . . Alert | -11 -10 -9 ------- Run | Scr Mat Mat Peak Influence 355 | 20 277 355 Initial 117 | . 13 117 Average 176 | 3 113 274 Maximum Alert Level 1 | . 1 1 Low Security (%) 49 | 100 82 10 Level 1 50 | . 17 89 Level 2 . | . . . Level 3 . | . . . Level 4 . | . . . Level 5 . | . . . High Security . | . . . Max Security . | . . . Squads Dispatched 7 | . 4 3 Investigation 1 | . . 1 Extermination . | . . . Reinforcement 6 | . 4 2 Assault . | . . . Garrison . | . . . Intercept . | . . . Construction Impeded 1 | . . 1 Haulers Reinforced . | . . . Stealth | -11 -10 -9 --------- Run | Scr Mat Mat Distress Signals 3 | . 2 1 Communications Jammed . | . . . Distress Signals . | . . . Times Spotted 35 | 1 12 22 Peak Tracking Total 10 | 1 3 10 Tactical Retreats 1 | . . 1 Traps | -11 -10 -9 ------- Run | Scr Mat Mat Traps Triggered 1 | . . 1 Indirectly . | . . . Trap Hack Attempts . | . . . Triggered . | . . . Disarmed . | . . . Reprogrammed . | . . . Reused . | . . . Traps Extracted . | . . . Installed . | . . . Triggered . | . . . Machines | -11 -10 -9 ---------- Run | Scr Mat Mat Machines Disabled 3 | . 1 2 Max in Single Turn 1 | . 1 1 Machines Sabotaged . | . . . Garrisons Compromised . | . . . Overloaded Fab Kills . | . . . Fab Network Shutdowns . | . . . Hacking | -11 -10 -9 --------- Run | Scr Mat Mat Machines Accessed 7 | . 3 4 Terminals 7 | . 3 4 Fabricators . | . . . Repair Stations . | . . . Recycling Units . | . . . Scanalyzers . | . . . Garrison Access . | . . . Total Hacks 12 | . 4 8 Successful 7 | . 1 6 Failed 5 | . 3 2 Catastrophic 1 | . 1 . Database Lockouts . | . . . Manual 5 | . 1 4 Terminals 12 | . 4 8 Fabricators . | . . . Repair Stations . | . . . Recycling Units . | . . . Scanalyzers . | . . . Garrison Access . | . . . Terminal Hacks 7 | . 1 6 Record 6 | . 1 5 Emergency Access Points 1 | . . 1 Fabricator Hacks . | . . . Repair Station Hacks . | . . . Recycling Unit Hacks . | . . . Scanalyzer . | . . . Garrison Access Hacks . | . . . Unauthorized Hacks . | . . . Terminals . | . . . Fabricators . | . . . Repair Stations . | . . . Recycling Units . | . . . Scanalyzers . | . . . Garrison Access . | . . . Data Cores Recovered . | . . . Used . | . . . Hacking Detections 3 | . 2 1 Full Trace Events . | . . . Feedback Events . | . . . Feedback Blocked . | . . . Robot Schematics Acquired . | . . . Robots Built . | . . . Matter . | . . . Time . | . . . Total Robot Build Rating . | . . . Part Schematics Acquired . | . . . Parts Built . | . . . Matter . | . . . Time . | . . . Total Part Build Rating . | . . . Parts Repaired . | . . . Time . | . . . Parts Recycled . | . . . Recycled Matter . | . . . Retrieved Matter . | . . . Retrieved Components . | . . . Parts Scanalyzed . | . . . Part Schematics Acquired . | . . . Parts Damaged . | . . . Bothacking | -11 -10 -9 ------------ Run | Scr Mat Mat Used RIF Installer . | . . . Robots Hacked . | . . . Non-combat . | . . . Combat . | . . . Robot Hacks Applied . | . . . Relay Couplers Released . | . . . Robots Rewired . | . . . Allies Hacked . | . . . Hacks Repelled . | . . . Allies | -11 -10 -9 -------- Run | Scr Mat Mat Total Allies . | . . . Largest Group . | . . . Highest-Rated Group . | . . . Highest-Rated Ally . | . . . Total Orders . | . . . Ally Attacks . | . . . Total Damage . | . . . Kills . | . . . Allies Corrupted . | . . . Allies Melted . | . . . Intel | -11 -10 -9 ------- Run | Scr Mat Mat Robot Analysis Total . | . . . Derelict Logs Recovered . | . . . Drone Launches . | . . . Drone Recoveries . | . . . Exploration | -11 -10 -9 ------------- Run | Scr Mat Mat Turns Passed 638 | 85 246 307 Spaces Moved 516 | 62 197 257 Core 17 | 16 . 1 Treads 36 | . 1 35 Legs 156 | 46 110 . Wheels 307 | . 86 221 Hover . | . . . Flight . | . . . Fastest Speed 50 | 50 80 80 Average Speed 96 | 101 102 91 Slowest Speed 200 | 120 160 200 Overloaded Moves . | . . . Propulsion Burnouts . | . . . Robots Hopped . | . . . Cave-ins Triggered . | . . . Exploration Rate (%) 26 | 6 45 28 Regions Visited 2 Branch Regions . Pre-discovered Areas . | . . . Known Exits Taken . | . . . Unknown Exits Taken 2 | 1 1 . Scrap Searched . | . . . Spaces Dug . | . . . Terrain Destroyed 118 | . 49 69 Melee . | . . . Projectile . | . . . AOE 118 | . 49 69 Terrain Rammed . | . . . Walls Destroyed . | . . . Machines Disabled . | . . . Actions | -11 -10 -9 --------- Run | Scr Mat Mat Total 589 | 75 220 294 Wait 3 | . . 3 Move 514 | 61 196 257 Hop . | . . . Pick Up 5 | 3 . 2 Fast Attach 18 | 6 5 7 Attach 4 | . 3 1 Detach 1 | . 1 . Swap 2 | 1 . 1 Drop 7 | 1 5 1 Fire 35 | 3 10 22 Melee . | . . . Ram . | . . . Kick . | . . . Crush . | . . . Escape Stasis . | . . . Rewire . | . . . Trap . | . . . Miscellaneous . | . . . Route ------- -11/Scrapyard -10/Materials -9/Materials (discovered 1 exit: [*Mat]) History --------- Turn | Location | Event 2 | -11/Scrapyard | Met Revision 17 60 | -11/Scrapyard | Discovered new exit (range 8) 86 | -11/Scrapyard | Entered Materials 313 | -10/Materials | Build established: Mutant 328 | -10/Materials | Discovered new exit (range 5) 332 | -10/Materials | Entered another Materials area 332 | -9/Materials | Evolved 2 slots: Utility x1, Weapon x1 536 | -9/Materials | Discovered new exit (range 15) 563 | -9/Materials | Core integrity fell below 50% 609 | -9/Materials | Lost 10 parts (1p2n7w) 626 | -9/Materials | Core integrity fell below 20% 639 | -9/Materials | Destroyed by S-10 Pest with Light Assault Rifle Last Messages --------------- 00573_ Identified Imp. Medium Laser. 00574_ U-05 Engineer builds a Wall. 00574_ Imp. Medium Laser destroyed. 00575_ Acquired Prototype Engine. 00575_ Identified Hvy. Ion Engine. 00576_ U-05 Engineer lays Concrete. 00577_ G-34 Mercenary destroyed. 00577_ U-05 Engineer lays Concrete. 00577_ Sml. Laser destroyed. 00578_ Wheel destroyed. 00578_ U-05 Engineer builds a Wall. 00579_ U-05 Engineer lays Concrete. 00581_ Acquired Lgt. Treads. 00582_ Acquired 12 matter. 00582_ U-05 Engineer lays Concrete. 00600_ Acquired Imp. Treads. 00626_ W-16 Scout sends out distress signal. 00627_ Propulsion Shielding destroyed. 00632_ Hvy. Ion Engine destroyed. 00633_ Lgt. Treads destroyed. Map ----- +----------------------------------------------------+ | "" # %** # " #??????????????????? | | "" # ### ### # #??????????????????? | | "" # ## ## ## #??????????????????? | | # # # ## #??????????????????? | | ######## ### #### #########??????????????????? | | ???????# #?###??# #??????????????????????????? | | ######## #??????# #??????????????????????????? | | #??????# #??????????????????????????? | | #########/######### ##?????????????????????????? | | #???????# # #?????????????????????????? | | #???????# # #?????????????????????????? | | #???????# / #?????????????????????????? | | #???????# # #?????????????????????????? | | #???????# """ #! #?????????????????????????? | | #???????# """"" ## ##?????????????????????????? | | #???????# """"" ## #??????????????????????????? | | ????????# """"" ## #??????????????????????????? | | ????????# """ ## #??????????????????????????? | | ????????########### #??????????????????????????? | | ??????????????????# #??????????????????????????? | | ??????????????????# #??????????????????????????? | | ??????????????????# #??????????????????????????? | | ??????????????????# #??????????????????????????? | | ??????????????????# #??????????????????????????? | | ??????????????????#s ######## """????????????? | | ??????????????????#s s @ t """????????????? | | ?????????? s """????????????? | | ?????? k """????????????? | | ??????? r r a ???????????? | | ???????? ##################### ?????????? | | ???????????????????????????????###"T"##??????????? | | ?????????????????????????????????????????????????? | | ?????????????????????????????????????????????????? | | ?????????????????????????????????????????????????? | | ?????????????????????????????????????????????????? | | ?????????????????????????????????????????????????? | | ?????????????????????????????????????????????????? | | ?????????????????????????????????????????????????? | | ?????????????????????????????????????????????????? | | ?????????????????????????????????????????????????? | | ?????????????????????????????????????????????????? | | ?????????????????????????????????????????????????? | | ?????????????????????????????????????????????????? | | ?????????????????????????????????????????????????? | | ?????????????????????????????????????????????????? | | ?????????????????????????????????????????????????? | | ?????????????????????????????????????????????????? | | ?????????????????????????????????????????????????? | | ?????????????????????????????????????????????????? | | ?????????????????????????????????????????????????? | +----------------------------------------------------+ Best States ------------- Heat Dissipation 28 Energy Generation 14 Energy Capacity 280 Matter Stores 329 Matter Capacity 350 Sight Range 16 Terrain Scan Density 10 Propulsion Shielding 33 Evasion (%) 50 Recoil Reduction 2 Item Schematics ----------------- None Robot Schematics ------------------ None Fabricated ------------ Nothing Alien Tech Used ----------------- None Achievements -------------- Loot Pinata Challenges ------------ None Game ------ Seed HypercooledTrackerLoader Manual? 0 Play Time 00:24:46 Cumulative 2.8 hours Start 2020.12.28 @ 19:42:02 End 2020.12.28 @ 20:12:39 Sessions 1 Manual Loads 0 Difficulty Rogue Special Mode None Game No. 3 Rogue 3 Adventurer 0 Explorer 0 Win Type - Total 0 Types 0/0/0/0/0/0/0/0/0 Lore% 1 Gallery% 3 Achievement% 3 Wizard Run 0 Options --------- ASCII 1 Keyboard 1 Movement Vi Keybinds 0 Fullscreen 0 Font 12/Fuzzy Map View 83x54 Tactical HUD 1 Map Filters NONE Filters NONE Steam 0 RUN: ad9e8b34-5ce1-4910-b58b-09b25b0c7f15